Cogmind - Beta 9.6 @@@ ROGUE MODE // 2020.05.01 @ 21:51:10 Player: 3.14 Result: Self-destructed Performance ------------- Evolutions (7) 3500 Regions Visited (17) 3400 Robots Destroyed (111) 555 Value Destroyed (2596) 2596 Prototype IDs (39) 780 Alien Tech Used (1) 200 Bonus (1070) 1070 TOTAL SCORE: 12101 Bonus ------- High Alert Combat Kills 90 Follower Combat Kills 180 Met Warlord at Base 500 MAIN.C Attacked Warlord 500 Friendly Fire -200 Cogmind --------- Core Integrity 1208/1300 Matter 283/300 Energy 100/100 System Corruption 3% Temperature Cool (0) Movement Core (200) Ox3 Location -3/Quarantine Parts ------- > --- POWER (2) -------- (None) > --- PROPULSION (7) --- Cooled VTOL Module Cooled Cesium-ion Thruster Biomechanical Wings Cooled Impulse Thruster Impulse Thruster Array > --- UTILITY (10) ----- Medium Storage Unit Experimental Sensor Array Experimental Signal Interpreter Experimental Core Analyzer Experimental Hacking Suite Experimental Hacking Suite Experimental Hacking Suite Advanced System Shield Advanced System Shield > --- WEAPON (2) ------- Katana > --- INVENTORY (8) ---- Field Propulsion Array Impulse Thruster Array Advanced Melee Analysis Suite Vortex Driver Vortex Driver Grenade Launcher Peak State ------------ > --- POWER ------------ Vortex Chain Reactor > --- PROPULSION ------- Cooled VTOL Module Cooled Cesium-ion Thruster Biomechanical Wings Cooled Impulse Thruster Cooled Impulse Thruster Impulse Thruster Array > --- UTILITY ---------- Medium Storage Unit Experimental Sensor Array Experimental Signal Interpreter Experimental Core Analyzer Experimental Hacking Suite Experimental Hacking Suite Experimental Hacking Suite Experimental Hacking Suite Advanced System Shield Advanced System Shield > --- WEAPON ----------- Katana > --- INVENTORY -------- Field Propulsion Array Impulse Thruster Array Advanced Melee Analysis Suite Vortex Driver Vortex Driver Grenade Launcher [Rating: 146] Favorites ----------- Power Micro Nuclear Core Engine Improved Ion Engine Power Core Micro Nuclear Core Reactor Vortex Chain Reactor Propulsion Improved Flight Unit Treads Light Treads Leg Aluminum Leg Flight Unit Improved Flight Unit Utility Experimental Hacking Suite Device Long-range Sensor Array Storage High-capacity Storage Unit Processor Experimental Signal Interpreter Hackware Experimental Hacking Suite Protection Light Armor Plating Weapon Katana Energy Gun Shock Rifle Energy Cannon Beam Cannon Ballistic Gun Assault Rifle Launcher Grenade Launcher Slashing Weapon Katana Special Melee Weapon Datajack Build | -11 -10 -9 -8 -7 -7 -7 -6 -5 -5 -5 -5 -5 -5 -4 -4 -3 -3 ------- Run | Scr Mat Mat Mat Fac Was Fac Fac Fac Was Fac Upp Upp War Pro Fac Res Qua Slots Evolved 14 | . . 2 2 2 . . 2 2 . . . . . . 2 2 . Power 1 | . . . . 1 . . . . . . . . . . . . . Propulsion 5 | . . . 2 . . . . 1 . . . . . . 1 1 . Utility 8 | . . 2 . 1 . . 2 1 . . . . . . 1 1 . Weapon . | . . . . . . . . . . . . . . . . . . Parts Attached 149 | 7 12 32 21 14 . 11 8 3 . 8 3 1 16 . 5 8 . Power 24 | 1 1 4 3 3 . 2 . 1 . 2 . . 6 . 1 . . Engine 7 | 1 1 4 1 . . . . . . . . . . . . . . Core 14 | . . . 2 3 . 2 . 1 . 2 . . 4 . . . . Reactor 3 | . . . . . . . . . . . . . 2 . 1 . . Propulsion 38 | 2 4 6 9 5 . 1 2 1 . 2 . . 2 . 1 3 . Treads 4 | 2 2 . . . . . . . . . . . . . . . . Leg 17 | . 2 6 9 . . . . . . . . . . . . . . Wheel . | . . . . . . . . . . . . . . . . . . Hover . | . . . . . . . . . . . . . . . . . . Flight 17 | . . . . 5 . 1 2 1 . 2 . . 2 . 1 3 . Utility 49 | 2 5 7 3 5 . 3 6 1 . 3 3 1 4 . 3 3 . Device 17 | 1 1 2 . 1 . . 2 . . . 2 1 4 . 2 1 . Storage 6 | 1 4 . . 1 . . . . . . . . . . . . . Processor 3 | . . . . . . . 2 . . . . . . . 1 . . Hackware 13 | . . . . 3 . 3 2 . . 3 . . . . . 2 . Protection 10 | . . 5 3 . . . . 1 . . 1 . . . . . . Artifact . | . . . . . . . . . . . . . . . . . . Weapon 38 | 2 2 15 6 1 . 5 . . . 1 . . 4 . . 2 . Energy Gun 16 | . . 12 4 . . . . . . . . . . . . . . Energy Cannon 5 | . . 2 . . . . . . . . . . 2 . . 1 . Ballistic Gun 7 | 2 2 1 2 . . . . . . . . . . . . . . Ballistic Cannon . | . . . . . . . . . . . . . . . . . . Launcher 3 | . . . . . . 2 . . . . . . 1 . . . . Special Weapon . | . . . . . . . . . . . . . . . . . . Impact Weapon . | . . . . . . . . . . . . . . . . . . Slashing Weapon 6 | . . . . 1 . 3 . . . . . . 1 . . 1 . Piercing Weapon . | . . . . . . . . . . . . . . . . . . Special Melee Weapon 1 | . . . . . . . . . . 1 . . . . . . . Unidentified Prototypes 16 | . . 2 1 1 . . 3 . . 2 . . 5 . 1 . 1 Parts Lost 19 | . 1 7 4 . . 2 . . . . . . . . 1 4 . Power 1 | . . . . . . . . . . . . . . . . 1 . Propulsion 2 | . . . . . . . . . . . . . . . 1 1 . Utility 10 | . 1 3 2 . . 2 . . . . . . . . . 2 . Weapon 6 | . . 4 2 . . . . . . . . . . . . . . Highest Loss Streak 2 | . 1 1 2 . . 1 . . . . . . . . 1 2 . Average Slot Usage (%) 95 | . 98 99 99 87 92 89 91 90 94 99 100 100 99 100 82 81 71 Engine 4 | . 14 11 5 . . . . . . . . . . . . . . Core 5 | . . . 3 13 15 15 13 11 11 10 11 11 10 11 . . . Treads 1 | . 16 . . . . . . . . . . . . . . . . Leg 10 | . 10 22 35 4 . . . . . . . . . . . . . Flight 15 | . . . . 25 30 30 26 28 29 29 29 29 29 29 30 27 23 Device 6 | . 8 10 8 5 7 1 4 5 5 5 5 4 4 5 4 3 4 Storage 12 | . 19 22 18 8 7 7 6 5 5 5 5 5 5 5 5 4 4 Processor 2 | . . . . . . . 4 5 5 5 5 5 5 5 5 9 9 Hackware 14 | . . . . 17 23 26 27 23 23 25 29 29 29 29 26 27 23 Protection 4 | . . 10 9 2 . . . 2 5 3 . . . . . . . Energy Gun 6 | . . 18 16 2 . . . . . . . . . . . . . Ballistic Gun 2 | . 27 . 1 . . . . . . . . . . . . . . Slashing Weapon 2 | . . . . 5 7 6 6 5 5 5 5 5 5 5 4 2 4 Naked Turns . | . . . . . . . . . . . . . . . . . . Heaviest Build 93 | 12 72 82 93 93 22 23 24 28 28 29 27 27 28 28 49 62 11 Greatest Support 86 | 40 40 20 50 50 24 24 26 31 31 33 31 31 41 33 49 86 59 Greatest Overweight (x) 4 | . 3 4 2 1 . 1 . . . . . . . . . . 3 Average Overweight (x) . | . . 3 1 . . . . . . . . . . . . . 2 Largest Inventory Capacity 24 | 6 20 20 20 24 8 8 8 8 8 8 8 8 8 8 8 8 8 Average Capacity 12 | 5 10 20 20 10 8 8 8 8 8 8 8 8 8 8 8 8 8 Most Carried 20 | 4 16 20 20 20 8 8 8 8 8 8 8 8 8 8 8 8 8 Average Carried 11 | 2 8 19 19 7 7 6 5 7 8 7 8 8 7 8 6 7 8 Final Capacity 20 | 6 20 20 20 8 8 8 8 8 8 8 8 8 8 8 8 8 8 Final Carried 20 | 4 16 19 20 6 8 7 8 8 8 8 8 8 8 8 8 8 8 Class Distribution -------------------- 30% | Wizard-Sprinter 30% | Hauler-Mutant 21% | Hacker-Sprinter 8% | Scavenger-Mutant 7% | Mutant Dominant Class ---------------- Mutant | -10/Materials Hauler-Mutant | -9/Materials Scavenger-Mutant | -8/Materials Hacker-Sprinter | -7/Factory Hacker-Sprinter | -7/Waste Hacker-Sprinter | -7/Factory Hacker-Sprinter | -6/Factory Hacker-Sprinter | -5/Factory Hacker-Sprinter | -5/Waste Hacker-Sprinter | -5/Factory Wizard-Sprinter | -5/Upper Caves Wizard-Sprinter | -5/Upper Caves Wizard-Sprinter | -5/Warlord Wizard-Sprinter | -4/Proximity Caves Wizard-Sprinter | -4/Factory Wizard-Sprinter | -3/Research Wizard-Mutant | -3/Quarantine Resources | -11 -10 -9 -8 -7 -7 -7 -6 -5 -5 -5 -5 -5 -5 -4 -4 -3 -3 ----------- Run | Scr Mat Mat Mat Fac Was Fac Fac Fac Was Fac Upp Upp War Pro Fac Res Qua Matter Collected 1886 | 251 301 336 230 120 20 115 33 97 . 70 30 20 96 64 . 103 . Remotely 117 | . 117 . . . . . . . . . . . . . . . . Salvage Created 4060 | 62 349 1809 1303 151 . 145 44 36 . 64 . 97 . . . . . Parts 218 | 1 23 99 60 5 . 12 11 1 . 5 . 1 . . . . . Haulers Intercepted 8 | . 2 3 3 . . . . . . . . . . . . . . Recyclers Shooed 6 | . 1 . 2 2 . . 1 . . . . . . . . . . Parts Field Recycled . | . . . . . . . . . . . . . . . . . . Retrieved Matter . | . . . . . . . . . . . . . . . . . . Parts Self-Destructed 27 | . . . . . . . . . . . . . 27 . . . . Prevented 4 | . . . . . . . . . . . . 4 . . . . . Kills | -11 -10 -9 -8 -7 -7 -7 -6 -5 -5 -5 -5 -5 -5 -4 -4 -3 -3 ------- Run | Scr Mat Mat Mat Fac Was Fac Fac Fac Was Fac Upp Upp War Pro Fac Res Qua Combat Hostiles Destroyed 66 | . 7 33 19 . . 7 . . . . . . . . . . . Melee 1 | . . . . . . 1 . . . . . . . . . . . Guns 53 | . 7 28 18 . . . . . . . . . . . . . . Cannons 1 | . . 1 . . . . . . . . . . . . . . . AOE 10 | . . 4 . . . 6 . . . . . . . . . . . Classes Destroyed 13 | 1 4 6 1 . . 1 . . . . . . . . . . . Worker 8 | . 2 3 2 . . . 1 . . . . . . . . . . Builder 3 | . . 1 2 . . . . . . . . . . . . . . Tunneler 3 | . . 1 1 . . . 1 . . . . . . . . . . Hauler 8 | . 2 3 3 . . . . . . . . . . . . . . Recycler 7 | 1 . 2 3 1 . . . . . . . . . . . . . Operator 5 | . . 3 1 1 . . . . . . . . . . . . . Watcher 9 | . . 2 2 1 . . 1 1 . 2 . . . . . . . Swarmer 26 | . 3 12 4 . . 7 . . . . . . . . . . . Grunt 28 | . 4 13 11 . . . . . . . . . . . . . . Brawler 1 | . . 1 . . . . . . . . . . . . . . . Sentry 10 | . . 7 3 . . . . . . . . . . . . . . Hunter 1 | . . . 1 . . . . . . . . . . . . . . Packrat 1 | . . . . . . . . . . . . 1 . . . . . Martyr 1 | . . . . . . 1 . . . . . . . . . . . Best Kill Streak 13 | 1 4 6 13 1 . 4 2 1 . 1 . . . . . . . Combat Bots Only 4 | . 3 4 4 . . 4 . . . . . . . . . . . Max Kills in Single Turn 2 | 1 1 2 2 1 . 2 1 1 . 1 . 1 . . . . . Gunslinging 1 | . . 1 . . . . . . . . . . . . . . . Exploded 2 | . . 2 . . . 2 . . . . . . . . . . . Melee 1 | . . . . . . 1 . . . . . . . . . . . Uniques/NPCs Destroyed . | . . . . . . . . . . . . . . . . . . Combat | -11 -10 -9 -8 -7 -7 -7 -6 -5 -5 -5 -5 -5 -5 -4 -4 -3 -3 -------- Run | Scr Mat Mat Mat Fac Was Fac Fac Fac Was Fac Upp Upp War Pro Fac Res Qua Damage Taken 3979 | . 304 1495 951 93 . 215 . 14 . . . . . 46 409 311 141 Core 632 | . 28 180 107 54 . 61 . 14 . . . . . 23 73 22 70 Absorbed by Shields . | . . . . . . . . . . . . . . . . . . Core Remaining (%) 86 | 100 88 55 80 . . 83 100 . . . . . . 96 93 . . Volleys Fired 225 | 3 29 111 77 . . 3 . . . . . . 1 . . 1 . Largest 2 | 2 2 2 2 . . 1 . . . . . . 1 . . 1 . Hottest 110 | 40 40 110 110 . . 30 . . . . . . 100 . . 100 . Shots Fired 431 | 6 58 209 153 . . 3 . . . . . . 1 . . 1 . Gun 408 | 6 58 191 153 . . . . . . . . . . . . . . Cannon 20 | . . 18 . . . . . . . . . . 1 . . 1 . Launcher 3 | . . . . . . 3 . . . . . . . . . . . Special . | . . . . . . . . . . . . . . . . . . Kinetic 72 | 6 58 . 8 . . . . . . . . . . . . . . Thermal 163 | . . 38 125 . . . . . . . . . . . . . . Explosive 3 | . . . . . . 3 . . . . . . . . . . . Electromagnetic 191 | . . 171 20 . . . . . . . . . . . . . . Entropic 2 | . . . . . . . . . . . . . 1 . . 1 . Robot Hit Streak 13 | 4 7 9 13 . . . . . . . . . . . . . . Robot Miss Streak 9 | 1 3 9 3 . . . . . . . . . . . . . . Penetration Max . | . . . . . . . . . . . . . . . . . . Secondary Targets 11 | . 2 5 4 . . . . . . . . . . . . . . Max Gunslinging Chain 1 | . 1 1 1 . . . . . . . . . . . . . . Shots Hit Robots 310 | 4 39 136 107 9 . 2 5 4 . 3 . 1 . . . . . Core Hits 163 | 2 17 69 55 3 . 10 3 1 . 2 . 1 . . . . . Critical Hits 1 | . . 1 . . . . . . . . . . . . . . . Critical Kills 1 | . . 1 . . . . . . . . . . . . . . . Critical Parts Destroyed . | . . . . . . . . . . . . . . . . . . Melee Attacks 180 | . . . . 32 2 28 29 7 . 28 . 2 12 9 . 30 1 Impact . | . . . . . . . . . . . . . . . . . . Slashing 180 | . . . . 32 2 28 29 7 . 28 . 2 12 9 . 30 1 Piercing . | . . . . . . . . . . . . . . . . . . Sneak Attacks 13 | . . . . 5 . 1 3 1 . 2 . 1 . . . . . Combat Hostiles . | . . . . . . . . . . . . . . . . . . Follow-up Attacks . | . . . . . . . . . . . . . . . . . . Damage Inflicted 7450 | 43 474 2409 2382 649 . 565 375 208 . 232 . 113 . . . . . Guns 4423 | 40 461 1890 2032 . . . . . . . . . . . . . . Cannons 210 | . . 210 . . . . . . . . . . . . . . . Explosions 1095 | . . 309 350 . . 436 . . . . . . . . . . . Melee 1706 | . . . . 649 . 129 375 208 . 232 . 113 . . . . . Ramming 16 | 3 13 . . . . . . . . . . . . . . . . Kinetic 578 | 40 461 . 77 . . . . . . . . . . . . . . Thermal 2876 | . . 697 2072 . . 107 . . . . . . . . . . . Explosive 329 | . . . . . . 329 . . . . . . . . . . . Electromagnetic 1945 | . . 1712 233 . . . . . . . . . . . . . . Impact . | . . . . . . . . . . . . . . . . . . Slashing 1706 | . . . . 649 . 129 375 208 . 232 . 113 . . . . . Piercing . | . . . . . . . . . . . . . . . . . . Highest Corruption 3 | . . 3 . 1 1 1 . . . 1 1 . . . 1 . 2 Average Corruption 1 | . . 2 . 1 1 1 . . . 1 1 . . . 1 . 1 Corruption Purged 1 | . . . . . . . . . . . 1 . . . . . . Effects 18 | . . 15 . . 1 . . . . . 2 . . . . . . Message Errors 4 | . . 3 . . . . . . . . 1 . . . . . . Matter Fused 4 | . . 4 . . . . . . . . . . . . . . . Heat Flow Errors 1 | . . 1 . . . . . . . . . . . . . . . Energy Discharges 2 | . . 1 . . . . . . . . 1 . . . . . . Data Loss (minor) 3 | . . 2 . . 1 . . . . . . . . . . . . Targeting Errors 4 | . . 4 . . . . . . . . . . . . . . . Overload Shots . | . . . . . . . . . . . . . . . . . . Overflow Damage 525 | . . . 83 262 . . 38 62 . 80 . . . . . . . Projectiles . | . . . . . . . . . . . . . . . . . . Explosions 83 | . . . 83 . . . . . . . . . . . . . . Melee 442 | . . . . 262 . . 38 62 . 80 . . . . . . . Knockbacks . | . . . . . . . . . . . . . . . . . . Impact . | . . . . . . . . . . . . . . . . . . Kinetic . | . . . . . . . . . . . . . . . . . . Secondary . | . . . . . . . . . . . . . . . . . . Self-Inflicted Damage 88 | . . 79 9 . . . . . . . . . . . . . . Shots 4 | . . 3 1 . . . . . . . . . . . . . . Rammed 3 | 1 2 . . . . . . . . . . . . . . . . Targets Rammed 3 | 1 2 . . . . . . . . . . . . . . . . Kicked . | . . . . . . . . . . . . . . . . . . Crushed . | . . . . . . . . . . . . . . . . . . Highest Temperature 320 | . 2 208 320 . . 9 . 30 30 20 3 10 56 . 13 163 . Average Temperature 35 | . 2 30 92 . . 6 . 12 15 7 2 2 4 . 13 86 . Received Heat Transfer 918 | . 96 390 387 9 . 9 . . . . . . . . 9 18 . Siege Activations . | . . . . . . . . . . . . . . . . . . Robots Corrupted 1 | . . 1 . . . . . . . . . . . . . . . Combat Hostiles . | . . . . . . . . . . . . . . . . . . Parts Fried 13 | . . 13 . . . . . . . . . . . . . . . Impact Corruptions . | . . . . . . . . . . . . . . . . . . Robots Melted 1 | . . . 1 . . . . . . . . . . . . . . Combat Hostiles 1 | . . . 1 . . . . . . . . . . . . . . Parts Melted 6 | . . 1 5 . . . . . . . . . . . . . . Heat Transferred 4981 | . . 1214 3667 . . 100 . . . . . . . . . . . Parts Sabotaged . | . . . . . . . . . . . . . . . . . . Parts Stolen . | . . . . . . . . . . . . . . . . . . Parts Stripped . | . . . . . . . . . . . . . . . . . . Power Chain Reactions 7 | . . 6 1 . . . . . . . . . . . . . . Missiles Intercepted . | . . . . . . . . . . . . . . . . . . Alert | -11 -10 -9 -8 -7 -7 -7 -6 -5 -5 -5 -5 -5 -5 -4 -4 -3 -3 ------- Run | Scr Mat Mat Mat Fac Was Fac Fac Fac Was Fac Upp Upp War Pro Fac Res Qua Peak Influence 806 | 5 164 445 543 634 263 598 806 105 66 443 . . . . 60 579 270 Average Influence 213 | . 71 210 311 322 235 246 473 63 43 93 . . . . 1 391 257 Maximum Alert Level 3 | . . 2 2 2 1 2 3 . . 2 . . . . . 2 1 Low Security (%) 46 | 100 100 37 15 . . 31 1 100 100 87 . . . . 100 22 . Level 1 39 | . . 53 58 77 100 64 68 . . . . . . . . 3 100 Level 2 13 | . . 8 26 22 . 3 4 . . 11 . . . . . 74 . Level 3 1 | . . . . . . . 25 . . . . . . . . . . Level 4 . | . . . . . . . . . . . . . . . . . . Level 5 . | . . . . . . . . . . . . . . . . . . High Security . | . . . . . . . . . . . . . . . . . . Max Security . | . . . . . . . . . . . . . . . . . . Squads Dispatched 28 | . 2 3 4 1 . 1 3 1 . 4 . . . . 1 7 1 Investigation 12 | . 2 . . 1 . 1 1 . . 3 . . . . . 4 . Extermination 3 | . . . . . . . . . . 1 . . . . 1 1 . Reinforcement 11 | . . 3 4 . . . 1 . . . . . . . . 2 1 Assault 1 | . . . . . . . 1 . . . . . . . . . . Garrison 1 | . . . . . . . . 1 . . . . . . . . . Intercept . | . . . . . . . . . . . . . . . . . . Construction Impeded 2 | . . . 2 . . . . . . . . . . . . . . Haulers Reinforced 1 | . . . . . . . 1 . . . . . . . . . . Stealth | -11 -10 -9 -8 -7 -7 -7 -6 -5 -5 -5 -5 -5 -5 -4 -4 -3 -3 --------- Run | Scr Mat Mat Mat Fac Was Fac Fac Fac Was Fac Upp Upp War Pro Fac Res Qua Distress Signals 14 | . . 3 5 1 . . . 1 . 1 . . . . 1 1 1 Communications Jammed . | . . . . . . . . . . . . . . . . . . Distress Signals . | . . . . . . . . . . . . . . . . . . Times Spotted 194 | . 17 49 34 12 4 12 3 7 3 7 . 5 7 2 5 23 4 Peak Tracking Total 12 | . 4 5 6 4 3 4 3 5 3 3 . 5 4 2 9 12 8 Tactical Retreats 21 | . . 3 2 4 . 3 . 2 . 2 . 3 . . . 2 . Traps | -11 -10 -9 -8 -7 -7 -7 -6 -5 -5 -5 -5 -5 -5 -4 -4 -3 -3 ------- Run | Scr Mat Mat Mat Fac Was Fac Fac Fac Was Fac Upp Upp War Pro Fac Res Qua Traps Triggered 14 | . 1 2 . 2 . 3 1 1 . 2 . . . . 1 1 . Indirectly . | . . . . . . . . . . . . . . . . . . Trap Hack Attempts . | . . . . . . . . . . . . . . . . . . Triggered . | . . . . . . . . . . . . . . . . . . Disarmed . | . . . . . . . . . . . . . . . . . . Reprogrammed 5 | . . . . . . . . . . 5 . . . . . . . Reused 1 | . . . . . . . . . . 1 . . . . . . . Traps Extracted . | . . . . . . . . . . . . . . . . . . Installed . | . . . . . . . . . . . . . . . . . . Triggered 14 | . . 1 . . . . . . . 1 . 1 11 . . . . Machines | -11 -10 -9 -8 -7 -7 -7 -6 -5 -5 -5 -5 -5 -5 -4 -4 -3 -3 ---------- Run | Scr Mat Mat Mat Fac Was Fac Fac Fac Was Fac Upp Upp War Pro Fac Res Qua Machines Disabled 16 | . 1 2 5 1 . 4 . . . . . . 1 . . 1 1 Max in Single Turn 4 | . 1 1 3 1 . 4 . . . . . . 1 . . 1 1 Garrison Access 3 | . . . . . . 1 . . . 1 . . . . . 1 . Machines Sabotaged . | . . . . . . . . . . . . . . . . . . Garrisons Compromised . | . . . . . . . . . . . . . . . . . . Overloaded Fab Kills . | . . . . . . . . . . . . . . . . . . Fab Network Shutdowns 5 | . . . . 1 . 1 1 . . 1 . . . . . 1 . Hacking | -11 -10 -9 -8 -7 -7 -7 -6 -5 -5 -5 -5 -5 -5 -4 -4 -3 -3 --------- Run | Scr Mat Mat Mat Fac Was Fac Fac Fac Was Fac Upp Upp War Pro Fac Res Qua Machines Accessed 79 | . 5 6 3 9 . 12 14 2 . 14 1 . 2 . 2 9 . Terminals 55 | . 4 4 2 6 . 8 12 1 . 11 . . . . . 7 . Fabricators 9 | . . . . 2 . 1 2 1 . 1 . . . . 1 1 . Repair Stations 2 | . 1 . . . . . . . . . . . . . 1 . . Recycling Units . | . . . . . . . . . . . . . . . . . . Scanalyzers 7 | . . 2 1 1 . 2 . . . 1 . . . . . . . Garrison Access 3 | . . . . . . 1 . . . 1 . . . . . 1 . Total Hacks 287 | . 21 14 9 37 . 35 55 7 . 60 4 . 2 . 5 38 . Successful 209 | . 15 11 5 24 . 26 47 4 . 41 4 . 2 . 5 25 . Failed 76 | . 5 3 4 13 . 9 8 3 . 19 . . . . . 12 . Catastrophic 4 | . 1 1 1 1 . . . . . . . . . . . . . Database Lockouts 2 | . 1 . . . . . . . . . . . . . . 1 . Manual 165 | . 11 6 7 20 . 17 35 3 . 38 . . . . 1 27 . Terminals 207 | . 17 8 7 25 . 20 46 3 . 48 . . . . . 33 . Fabricators 42 | . . . . 9 . 6 9 4 . 7 . . . . 3 4 . Repair Stations 6 | . 4 . . . . . . . . . . . . . 2 . . Recycling Units . | . . . . . . . . . . . . . . . . . . Scanalyzers 22 | . . 6 2 3 . 7 . . . 4 . . . . . . . Garrison Access 4 | . . . . . . 2 . . . 1 . . . . . 1 . Terminal Hacks 82 | . 7 2 . 8 . 6 22 . . 18 4 . 2 . . 13 . Record 4 | . . . . . . . . . . . 4 . . . . . . Part Schematic 21 | . 1 . . 2 . . 7 . . 7 . . . . . 4 . Robot Analysis 1 | . 1 . . . . . . . . . . . . . . . . Prototype ID Bank 7 | . 2 1 . 1 . 1 2 . . . . . . . . . . Open Door 2 | . . . . . . . . . . . . . 2 . . . . Level Access Points 1 | . . . . . . . 1 . . . . . . . . . . Branch Access Points 6 | . . . . . . 1 2 . . 2 . . . . . 1 . Machine Index 1 | . . . . . . . 1 . . . . . . . . . . Terminal Index 4 | . . . . 1 . 1 . . . 1 . . . . . 1 . Fabricator Index 5 | . . . . 1 . 1 . . . 2 . . . . . 1 . Scanalyzer Index 1 | . . . . . . 1 . . . . . . . . . . . Alert Level 1 | . . . . . . . . . . 1 . . . . . . . Unreport Threat 6 | . . . . . . 1 5 . . . . . . . . . . Locate Traps 4 | . . 1 . 2 . . . . . 1 . . . . . . . Reprogram Traps 1 | . . . . . . . . . . 1 . . . . . . . Recall Investigation 5 | . 1 . . 1 . . . . . 1 . . . . . 2 . Recall Extermination 2 | . . . . . . . . . . 1 . . . . . 1 . Recall Assault 1 | . . . . . . . 1 . . . . . . . . . . Hauler Manifests 2 | . 2 . . . . . . . . . . . . . . . . Zone Layout 7 | . . . . . . . 3 . . 1 . . . . . 3 . Fabricator Hacks 26 | . . . . 6 . 4 5 2 . 4 . . . . 2 3 . Load Schematic 10 | . . . . 3 . 1 2 1 . 1 . . . . 1 1 . Build 16 | . . . . 3 . 3 3 1 . 3 . . . . 1 2 . Repair Station Hacks 6 | . 4 . . . . . . . . . . . . . 2 . . Scan Component 3 | . 2 . . . . . . . . . . . . . 1 . . Repair 3 | . 2 . . . . . . . . . . . . . 1 . . Recycling Unit Hacks . | . . . . . . . . . . . . . . . . . . Scanalyzer 20 | . . 6 2 2 . 6 . . . 4 . . . . . . . Insert Component 9 | . . 3 1 1 . 2 . . . 2 . . . . . . . Analyze 11 | . . 3 1 1 . 4 . . . 2 . . . . . . . Garrison Access Hacks 3 | . . . . . . 1 . . . 1 . . . . . 1 . Seal Access 3 | . . . . . . 1 . . . 1 . . . . . 1 . Unauthorized Hacks 72 | . 4 3 3 8 . 9 20 2 . 14 . . . . 1 8 . Terminals 60 | . 4 3 3 6 . 7 17 2 . 11 . . . . . 7 . Track 20 | . . . . 2 . 3 7 1 . 4 . . . . . 3 . Assimilate 6 | . . . . 1 . 1 1 1 . 1 . . . . . 1 . Botnet 31 | . 4 2 2 3 . 3 8 . . 6 . . . . . 3 . Operators 3 | . . 1 1 . . . 1 . . . . . . . . . . Fabricators 12 | . . . . 2 . 2 3 . . 3 . . . . 1 1 . Report 2 | . . . . . . 1 . . . 1 . . . . . . . Prioritize 2 | . . . . . . . 1 . . 1 . . . . . . . Siphon 8 | . . . . 2 . 1 2 . . 1 . . . . 1 1 . Repair Stations . | . . . . . . . . . . . . . . . . . . Recycling Units . | . . . . . . . . . . . . . . . . . . Scanalyzers . | . . . . . . . . . . . . . . . . . . Garrison Access . | . . . . . . . . . . . . . . . . . . Data Cores Recovered . | . . . . . . . . . . . . . . . . . . Used . | . . . . . . . . . . . . . . . . . . Hacking Detections 60 | . 5 6 3 8 . 8 9 2 . 11 . . . . . 8 . Full Trace Events 7 | . . . . 1 . . 1 . . 2 . . . . . 3 . Feedback Events 2 | . . . . . . . . . . 1 . . . . . 1 . Corruption 1 | . . . . . . . . . . 1 . . . . . . . Hackware Fried 1 | . . . . . . . . . . . . . . . . 1 . Feedback Blocked . | . . . . . . . . . . . . . . . . . . Robot Schematics Acquired . | . . . . . . . . . . . . . . . . . . Robots Built . | . . . . . . . . . . . . . . . . . . Matter . | . . . . . . . . . . . . . . . . . . Time . | . . . . . . . . . . . . . . . . . . Total Robot Build Rating . | . . . . . . . . . . . . . . . . . . Part Schematics Acquired 29 | . 1 2 1 3 . 2 7 . . 9 . . . . . 4 . Parts Built 16 | . . . . 3 . 2 3 2 . 3 . . . . 1 2 . Matter 2859 | . . . . 357 . 526 444 146 . 789 . . . . 213 384 . Time 1094 | . . . . 245 . 186 80 24 . 279 . . . . 152 128 . Total Part Build Rating 86 | . . . . 8 . 14 16 6 . 21 . . . . 5 16 . Parts Repaired 3 | . 2 . . . . . . . . . . . . . 1 . . Time 78 | . 52 . . . . . . . . . . . . . 26 . . Parts Recycled . | . . . . . . . . . . . . . . . . . . Recycled Matter . | . . . . . . . . . . . . . . . . . . Retrieved Matter . | . . . . . . . . . . . . . . . . . . Retrieved Components . | . . . . . . . . . . . . . . . . . . Parts Scanalyzed 9 | . . 3 1 1 . 2 . . . 2 . . . . . . . Part Schematics Acquired 8 | . . 2 1 1 . 2 . . . 2 . . . . . . . Parts Damaged 2 | . . 1 . . . 1 . . . . . . . . . . . Bothacking | -11 -10 -9 -8 -7 -7 -7 -6 -5 -5 -5 -5 -5 -5 -4 -4 -3 -3 ------------ Run | Scr Mat Mat Mat Fac Was Fac Fac Fac Was Fac Upp Upp War Pro Fac Res Qua Used RIF Installer . | . . . . . . . . . . . . . . . . . . Robots Hacked . | . . . . . . . . . . . . . . . . . . Non-combat . | . . . . . . . . . . . . . . . . . . Combat . | . . . . . . . . . . . . . . . . . . Robot Hacks Applied . | . . . . . . . . . . . . . . . . . . Relay Couplers Released . | . . . . . . . . . . . . . . . . . . Robots Rewired 1 | . . . . . . . 1 . . . . . . . . . . Allies Hacked . | . . . . . . . . . . . . . . . . . . Hacks Repelled . | . . . . . . . . . . . . . . . . . . Allies | -11 -10 -9 -8 -7 -7 -7 -6 -5 -5 -5 -5 -5 -5 -4 -4 -3 -3 -------- Run | Scr Mat Mat Mat Fac Was Fac Fac Fac Was Fac Upp Upp War Pro Fac Res Qua Total Allies 25 | . . . . 1 19 . 2 1 . 1 . . . . . 1 . Largest Group 19 | . . . . 1 19 1 2 1 . 1 . . . . . 1 . Highest-Rated Group 487 | . . . . 10 487 14 42 26 . 10 . . . . . 44 . Highest-Rated Ally 44 | . . . . 10 35 14 32 26 . 10 . . . . . 44 . Total Orders 2 | . . . . . . . 2 . . . . . . . . . . ROAM 1 | . . . . . . . 1 . . . . . . . . . . FOLLOW 1 | . . . . . . . 1 . . . . . . . . . . Ally Attacks 98 | . . . . . 81 9 8 . . . . . . . . . . Total Damage 3547 | . . . . . 3205 77 265 . . . . . . . . . . Kills 16 | . . . . . 12 1 3 . . . . . . . . . . Allies Corrupted . | . . . . . . . . . . . . . . . . . . Allies Melted 1 | . . . . . . . . . . . . . 1 . . . . Intel | -11 -10 -9 -8 -7 -7 -7 -6 -5 -5 -5 -5 -5 -5 -4 -4 -3 -3 ------- Run | Scr Mat Mat Mat Fac Was Fac Fac Fac Was Fac Upp Upp War Pro Fac Res Qua Robot Analysis Total 1 | . 1 . . . . . . . . . . . . . . . . Derelict Logs Recovered 2 | . . . . . . . . . . . 1 1 . . . . . Drone Launches . | . . . . . . . . . . . . . . . . . . Drone Recoveries . | . . . . . . . . . . . . . . . . . . Exploration | -11 -10 -9 -8 -7 -7 -7 -6 -5 -5 -5 -5 -5 -5 -4 -4 -3 -3 ------------- Run | Scr Mat Mat Mat Fac Was Fac Fac Fac Was Fac Upp Upp War Pro Fac Res Qua Turns Passed 9208 | 103 914 2211 965 424 109 527 398 138 19 807 716 126 339 515 331 451 115 Spaces Moved 9104 | 52 439 793 415 954 245 693 841 409 83 980 265 373 788 330 541 850 53 Core 45 | 4 . . . . . . . . . . . . . . . . 41 Treads 298 | 48 250 . . . . . . . . . . . . . . . . Legs 1437 | . 189 793 415 40 . . . . . . . . . . . . . Wheels . | . . . . . . . . . . . . . . . . . . Hover . | . . . . . . . . . . . . . . . . . . Flight 7324 | . . . . 914 245 693 841 409 83 980 265 373 788 330 541 850 12 Fastest Speed 6 | 50 120 210 150 26 26 26 26 23 23 23 23 23 23 26 20 6 25 Average Speed 57 | 151 167 227 158 31 26 26 26 23 23 23 24 23 24 26 21 21 160 Slowest Speed 240 | 160 210 240 180 150 26 99 26 26 23 24 26 23 26 26 24 25 200 Overloaded Moves 12 | . . . . . . . . . . . . . . . . 12 . Propulsion Burnouts . | . . . . . . . . . . . . . . . . . . Robots Hopped 37 | . . . . 1 . . 2 1 . 19 . . . . 6 8 . Cave-ins Triggered . | . . . . . . . . . . . . . . . . . . Exploration Rate (%) 39 | 4 62 53 33 25 92 22 30 12 68 23 44 54 84 57 17 19 12 Regions Visited 17 Branch Regions 5 Pre-discovered Areas 1 | . . . . . . . . . . . 1 . . . . . . Known Exits Taken 8 | . . . . . . . 1 . . 1 1 1 1 1 1 1 . Unknown Exits Taken 5 | 1 1 1 1 . . 1 . . . . . . . . . . . Scrap Searched 6 | . . . . . . . . . . . 1 3 . 2 . . . Spaces Dug 141 | . . . . 17 2 31 20 3 . 25 . 1 8 9 . 25 . Terrain Destroyed 234 | . . 18 42 17 2 63 20 3 . 25 . 1 9 9 . 25 . Melee 129 | . . . . 17 2 21 20 3 . 25 . 1 8 9 . 23 . Projectile 3 | . . . . . . . . . . . . . 1 . . 2 . AOE 102 | . . 18 42 . . 42 . . . . . . . . . . . Actions | -11 -10 -9 -8 -7 -7 -7 -6 -5 -5 -5 -5 -5 -5 -4 -4 -3 -3 --------- Run | Scr Mat Mat Mat Fac Was Fac Fac Fac Was Fac Upp Upp War Pro Fac Res Qua Total 12394 | 66 564 1000 585 1038 286 990 974 437 82 1492 912 408 918 744 751 1066 81 Wait 2537 | . 54 15 32 20 38 252 68 18 . 468 645 33 80 406 199 183 26 Move 9019 | 52 438 792 414 952 244 692 837 407 82 942 264 372 787 329 528 834 53 Hop 34 | . . . . 1 . . 1 1 . 18 . . . . 6 7 . Pick Up 90 | 4 17 24 16 2 2 2 6 1 . 4 . . 5 . 5 2 . Fast Attach 47 | 7 4 6 4 . . 2 4 1 . 4 . . 11 . . 3 1 Attach 45 | . 1 12 5 11 . 2 2 1 . . . . 2 . 4 5 . Detach 5 | . . . . . . . . . . 1 . . . . 3 1 . Swap 58 | . 7 14 12 3 . 7 2 1 . 4 3 1 3 . 1 . . Drop 115 | . 12 26 25 17 . 2 6 . . 5 . . 17 . 5 . . Fire 225 | 3 29 111 77 . . 3 . . . . . . 1 . . 1 . Melee 180 | . . . . 32 2 28 29 7 . 28 . 2 12 9 . 30 1 Ram . | . . . . . . . . . . . . . . . . . . Kick . | . . . . . . . . . . . . . . . . . . Crush 2 | . 2 . . . . . . . . . . . . . . . . Escape Stasis 36 | . . . . . . . 18 . . 18 . . . . . . . Rewire 1 | . . . . . . . 1 . . . . . . . . . . Trap . | . . . . . . . . . . . . . . . . . . Miscellaneous . | . . . . . . . . . . . . . . . . . . Route ------- -11/Scrapyard -10/Materials (discovered 2 exits: *Mat x2) -9/Materials (discovered 3 exits: *Mat / [*Min] / [*Sto]) -8/Materials -7/Factory -7/Waste -7/Factory (discovered 3 exits: *Fac / Low x2) -6/Factory (discovered 8 exits: *Fac x4 / Low x2 / Ext x2) -5/Factory -5/Waste -5/Factory (discovered 2 exits: *Upp x2) -5/Upper Caves -5/Upper Caves (discovered 2 exits: *Fac / *War) -5/Warlord -4/Proximity Caves -4/Factory -3/Research (discovered 2 exits: *Qua x2) -3/Quarantine History --------- Turn | Location | Event 5 | -11/Scrapyard | Discovered new exit (range 16) 104 | -11/Scrapyard | Entered Materials 315 | -10/Materials | Build established: Mutant 335 | -10/Materials | Discovered new exit (range 14) 522 | -10/Materials | Repaired Lgt. Treads 549 | -10/Materials | Repaired Assault Rifle 586 | -10/Materials | Central database locked down 625 | -10/Materials | Discovered new exit (range 15) 1018 | -10/Materials | Entered another Materials area 1018 | -9/Materials | Evolved 2 slots: Utility x2 1065 | -9/Materials | Build established: Hauler-Mutant 1820 | -9/Materials | Discovered new exit (range 10) 2032 | -9/Materials | Discovered new exit (range 14) 2953 | -9/Materials | Discovered new exit (range 10) 3229 | -9/Materials | Entered another Materials area 3229 | -8/Materials | Evolved 2 slots: Propulsion x2 3527 | -8/Materials | Build established: Scavenger-Mutant 3993 | -8/Materials | Discovered new exit (range 16) 4194 | -8/Materials | Entered Factory 4194 | -7/Factory | Evolved 2 slots: Power x1, Utility x1 4226 | -7/Factory | Build established: Hauler-Mutant 4395 | -7/Factory | Fabricated System Shield? 4440 | -7/Factory | Fabricated Imp. Flight Unit? 4556 | -7/Factory | Fabricated Hacking Suite? 4598 | -7/Factory | Local fabrication network quarantined 4614 | -7/Factory | Build established: Hacker-Sprinter 4618 | -7/Factory | Manually triggered Chute Trap 4618 | -7/Factory | Sucked down chute 4618 | -7/Factory | Entered Waste 4619 | -7/Waste | Found Prototype Hackware 4626 | -7/Waste | Spotted C-40 Crusher 4638 | -7/Waste | Warlord forces began an assault 4672 | -7/Waste | Spotted C-40 Crusher 4674 | -7/Waste | Allies destroyed C-40 Crusher 4678 | -7/Waste | Spotted C-40 Crusher 4679 | -7/Waste | Spotted C-40 Crusher 4683 | -7/Waste | Allies destroyed C-40 Crusher 4685 | -7/Waste | Allies destroyed C-40 Crusher 4686 | -7/Waste | Spotted C-40 Crusher 4688 | -7/Waste | Allies destroyed C-40 Crusher 4717 | -7/Waste | Allies destroyed C-40 Crusher 4721 | -7/Waste | Discovered new exit (range 13) 4727 | -7/Waste | Entered Factory 4727 | -7/Factory | Accompanied by 2 allies 4784 | -7/Factory | Identified Exp. Hacking Suite 4990 | -7/Factory | Fabricated Exp. Hacking Suite (x1) 5085 | -7/Factory | Fabricated Exp. Hacking Suite (x1) 5171 | -7/Factory | Identified exit to Lower Caves 5190 | -7/Factory | Discovered new exit (range 7) 5234 | -7/Factory | Local fabrication network quarantined 5254 | -7/Factory | Entered another Factory area 5254 | -6/Factory | Evolved 2 slots: Utility x2 5260 | -6/Factory | Identified exit to Lower Caves 5260 | -6/Factory | Identified exit to Extension 5347 | -6/Factory | Fabricated Lrn. Sensor Array (x1) 5446 | -6/Factory | Fabricated Adv. System Shield (x1) 5464 | -6/Factory | Fabricated Adv. System Shield (x1) 5546 | -6/Factory | Local fabrication network quarantined 5604 | -6/Factory | First assault squad dispatched 5626 | -6/Factory | Found Prototype Processor 5626 | -6/Factory | Identified Exp. Signal Interpreter 5641 | -6/Factory | Discovered new exit (range 14) 5646 | -6/Factory | Identified exit to Factory 5652 | -6/Factory | Entered another Factory area 5652 | -5/Factory | Evolved 2 slots: Propulsion x1, Utility x1 5712 | -5/Factory | Fabricated Imp. Light Armor Plating (x2) 5756 | -5/Factory | Garrison activated, responded to threat 5790 | -5/Factory | Manually triggered Chute Trap 5790 | -5/Factory | Sucked down chute 5790 | -5/Factory | Entered Waste 5792 | -5/Waste | Spotted C-40 Crusher 5799 | -5/Waste | Spotted C-40 Crusher 5800 | -5/Waste | Spotted C-40 Crusher 5807 | -5/Waste | Spotted C-40 Crusher 5807 | -5/Waste | Discovered new exit (range 11) 5809 | -5/Waste | Identified exit to Factory 5809 | -5/Waste | Entered Factory 5822 | -5/Factory | Identified exit to Upper Caves 6325 | -5/Factory | Fabricated Exp. Hacking Suite? 6430 | -5/Factory | Fabricated Exp. Hacking Suite? 6516 | -5/Factory | Local fabrication network quarantined 6527 | -5/Factory | Fabricated Exp. Hacking Suite? 6616 | -5/Factory | Entered Upper Caves 6637 | -5/Upper Caves | Build established: Wizard-Sprinter 7275 | -5/Upper Caves | Learned Armory trap positions 7275 | -5/Upper Caves | Learned Extension security intel 7302 | -5/Upper Caves | Learned Factory garrison access intel 7329 | -5/Upper Caves | Discovered new exit (range 5) 7330 | -5/Upper Caves | Identified exit to Upper Caves 7332 | -5/Upper Caves | Entered another Upper Caves area 7334 | -5/Upper Caves | Attracted the attention of an 0b10 checkpoint 7362 | -5/Upper Caves | Discovered new exit (range 6) 7363 | -5/Upper Caves | Identified exit to Factory 7442 | -5/Upper Caves | Discovered new exit (range 12) 7445 | -5/Upper Caves | Identified exit to Warlord 7450 | -5/Upper Caves | Learned Factory stockpile data 7458 | -5/Upper Caves | Entered Warlord 7493 | -5/Warlord | Met Warlord 7518 | -5/Warlord | Warlord's base attacked by MAIN.C 7550 | -5/Warlord | Found Prototype Energy Cannon 7550 | -5/Warlord | Identified Vortex Driver 7597 | -5/Warlord | Found Prototype Reactor 7597 | -5/Warlord | Identified Vortex Chain Reactor 7605 | -5/Warlord | Found Prototype Processor 7610 | -5/Warlord | Found Prototype Device 7610 | -5/Warlord | Identified Exp. Cloaking Device 7615 | -5/Warlord | Found Prototype Device 7615 | -5/Warlord | Identified Exp. Focal Shield 7680 | -5/Warlord | Found Vortex Driver 7700 | -5/Warlord | Spotted B-86 Titan 7715 | -5/Warlord | Opened side exit 7795 | -5/Warlord | Discovered new exit (range 8) 7797 | -5/Warlord | Identified exit to Proximity Caves 7797 | -5/Warlord | Entered Proximity Caves 8306 | -4/Proximity Caves | Discovered exit to Factory (range 15) 8312 | -4/Proximity Caves | Entered Factory 8312 | -4/Factory | Evolved 2 slots: Propulsion x1, Utility x1 8314 | -4/Factory | Loaded intel: 4 garrison access locations 8371 | -4/Factory | Repaired Grenade Launcher 8527 | -4/Factory | Fabricated Exp. Sensor Array (x1) 8587 | -4/Factory | Identified Exp. Core Analyzer 8631 | -4/Factory | Discovered new exit (range 12) 8643 | -4/Factory | Identified exit to Research 8643 | -4/Factory | Entered Research 8643 | -3/Research | Evolved 2 slots: Propulsion x1, Utility x1 8657 | -3/Research | Identified exit to Quarantine 8727 | -3/Research | Fabricated Impulse Thruster Array (x1) 8744 | -3/Research | Local fabrication network quarantined 8793 | -3/Research | Fabricated Impulse Thruster Array (x1) 8799 | -3/Research | Exp. Hacking Suite fried by hacking feedback 8878 | -3/Research | Central database locked down 9087 | -3/Research | Spotted B-90 Cyclops 9094 | -3/Research | Entered Quarantine 9152 | -3/Quarantine | Found Alien Artifact 9152 | -3/Quarantine | Identified Subatomic Replicator 9209 | -3/Quarantine | Self-destructed Last Messages --------------- 09078_ ALERT: Hostiles spotted, dispatching reinforcements to Terminal R012. 09087_ Vortex penetrates Reinforced Barrier. 09090_ Cld. Impulse Thruster destroyed. 09091_ Machine disabled. 09093_ Vortex Chain Reactor destroyed. LOCATION=QUARANTINE AMBIENT_HEAT=-20 GOAL=ESCAPE 09142_ O-16 Technician: "IFF HANDSHAKE FAILED. SECURING TERMINAL." 09145_ O-16 Technician uses terminal to summon reinforcements. 09145_ ALERT: Hostiles spotted, dispatching reinforcements to Terminal Q012. 09145_ O-16 Technician locks terminal. 09145_ Suspension Chamber breached. 09152_ Acquired Alien Artifact. 09152_ Identified Subatomic Replicator. 09152_ Unable to initiate replication process, detached Subatomic Replicator. 09183_ K-01 Serf cleans the Terminal. Map ----- +----------------------------------------------------+ | ?????????# T " ## """ #???????????????????? | | ?????????# "" # """ ###?????????????????? | | ?????????# """!" + ???????????????? | | ?????????# """ # """ ###?????????????????? | | ?????????# " " # """ #???????????????????? | | ?????????# " # """ #???????????????????? | | ?????????# # #???????????????????? | | ?????????########## """ #???????????????????? | | ??????????????????# """ #???????????????????? | | ??????????????????# """ #???????????????????? | | ??????????????????# #???????????????????? | | ??????????????????# """ #???????????????????? | | ??????????????????# """ #???????????????????? | | ??????????????????# """ #???????????????????? | | ??????????????????# #####+##????????????? | | ??????????????????# k ????????????? | | ??????????????????# u ???????????? | | ??????????????????# !]! u ???????????? | | ??????????????????+ !]! ??????????? | | ??????????????????# ]!! //! ???????????? | | ??????????????????# /!! ??????????? | | ??????????????????# /! ??????????? | | ??????????????????# ??????????? | | ??????????????????# p """??????????????? | | ??????????????????# p """"??????????????? | | ??????????????????# ###@########???????????????? | | ??????????????????# ## ?????????????????????? | | ??????????????????# ## = ???????????????????? | | ??????????????????# ## ?????????????????? | | ?????????????????? # #???????????????? | | ????????????????? # """ """ #???????????????? | | ???????????????? # """ """ #???????????????? | | ??????????????? # """ """ #???????????????? | | ?????????????? # # ?????????????????? | | ?????????????# ## #####?###??????????????????? | | ?????????????? ??# ???????????????????????????? | | ???????????????#??# ???????????????????????????? | | ??????????????????# ???????????????????????????? | | ??????????????????? ???????????????????????????? | | ?????????????????????????????????????????????????? | | ?????????????????????????????????????????????????? | | ?????????????????????????????????????????????????? | | ?????????????????????????????????????????????????? | | ?????????????????????????????????????????????????? | | ?????????????????????????????????????????????????? | | ?????????????????????????????????????????????????? | | ?????????????????????????????????????????????????? | | ?????????????????????????????????????????????????? | | ?????????????????????????????????????????????????? | | ?????????????????????????????????????????????????? | +----------------------------------------------------+ Best States ------------- Heat Dissipation 53 Energy Generation 55 Energy Capacity 700 Matter Stores 300 Matter Capacity 300 Sight Range 16 Robot Scan Range 30 Terrain Scan Density 10 Armor Coverage 375 Resistance: KI 20 Evasion (%) 78 Core Analysis 15 Recoil Reduction 2 Offensive Hacking 64 Defensive Hacking 28 Item Schematics ----------------- Hcp. Storage Unit | -10/Materials | Hacked Aluminum Leg | -9/Materials | Scanalyzed Imp. Flight Unit | -9/Materials | Scanalyzed System Shield | -8/Materials | Scanalyzed Hacking Suite | -7/Factory | Scanalyzed Lrn. Sensor Array | -7/Factory | Hacked Adv. Signal Interpreter | -7/Factory | Hacked Exp. Hacking Suite | -7/Factory | Scanalyzed Force Lance | -7/Factory | Scanalyzed Adv. System Shield | -6/Factory | Hacked Imp. Light Armor Plating | -6/Factory | Hacked Adv. Melee Analysis Suite | -6/Factory | Hacked Power Sword | -6/Factory | Hacked Mic. Nuclear Core | -6/Factory | Hacked Imp. Actuator Array | -6/Factory | Hacked Nanoactuators | -6/Factory | Hacked Imp. Phase Shifter | -5/Factory | Hacked Lgt. Particle Reactor | -5/Factory | Hacked Adv. Target Analyzer | -5/Factory | Hacked Imp. System Backup Module | -5/Factory | Scanalyzed Biomechanical Wings | -5/Factory | Scanalyzed Exp. System Shield | -5/Factory | Hacked Exp. Sensor Array | -5/Factory | Hacked Exp. Melee Analysis Suite | -5/Factory | Hacked Vibroblade | -5/Factory | Hacked Adv. Reaction Control System | -3/Research | Hacked Impulse Thruster Array | -3/Research | Hacked Femtoactuators | -3/Research | Hacked Nanosword | -3/Research | Hacked Robot Schematics ------------------ None Fabricated ------------ System Shield | x1 | -7/Factory Imp. Flight Unit | x1 | -7/Factory Hacking Suite | x1 | -7/Factory Exp. Hacking Suite | x1 | -7/Factory Exp. Hacking Suite | x1 | -7/Factory Lrn. Sensor Array | x1 | -6/Factory Adv. System Shield | x1 | -6/Factory Adv. System Shield | x1 | -6/Factory Imp. Light Armor Plating | x2 | -5/Factory Exp. Hacking Suite | x1 | -5/Factory Exp. Hacking Suite | x1 | -5/Factory Exp. Hacking Suite | x1 | -5/Factory Exp. Sensor Array | x1 | -4/Factory Impulse Thruster Array | x1 | -3/Research Impulse Thruster Array | x1 | -3/Research Alien Tech Used ----------------- Subatomic Replicator Achievements -------------- None Challenges ------------ None Game ------ Seed ScatterMassLoader Manual? 0 Play Time 01:22:38 Cumulative 505.5 hours Start 2020.05.01 @ 20:19:06 End 2020.05.01 @ 21:51:10 Sessions 1 Manual Loads 0 Difficulty Rogue Special Mode None Game No. 832 Rogue 832 Adventurer 0 Explorer 0 Win Type - Total 44 Types 29/1/5/7/2/0/0 Lore% 93 Gallery% 93 Achievement% 80 Wizard Run 0 Options --------- ASCII 1 Keyboard 0 Movement Numpad Keybinds 0 Fullscreen 0 Font 14/SmallcapsGlow Map View 76x50 Tactical HUD 1 Map Filters NONE Filters NONE Steam 1 RUN: b9007b71-bc53-4dee-8888-1e3c4dd80a74